bitfinex-derivatives/quotes_ETHF0:USTF0_20240829
["timestamp","ask_amount","ask_price","bid_price","bid_amount"]
[1724940031795,0.38824,2575.1,2574.7,3.2136317]
[1724940032000,7.71555583,2575.3,2574.9,0.38826]
[1724940032191,3.59601,2575.3,2575.0,0.38825]
[1724940032391,0.38819,2575.5,2575.1,0.38823]
[1724940032594,3.2078,2575.6,2575.0,3.2078]
[1724940032792,4.50775583,2575.5,2574.7,44.7737317]
[1724940032998,4.17831,2575.3,2574.7,44.3827317]
[1724940033205,4.50775583,2575.5,2574.7,44.3827317]
[1724940033387,4.50775583,2575.5,2574.7,44.7710217]
[1724940033388,4.28176828,2575.2,2574.7,44.7710217]
[1724940033587,0.38824,2575.1,2574.7,44.3827317]
[1724940033799,0.38822,2575.2,2574.7,44.7710117]
[1724940033990,4.15934939,2575.0,2574.7,44.7710117]
[1724940034189,3.5801,2575.3,2574.7,44.0136317]
[1724940034489,4.15934939,2574.9,2574.7,0.0058317]
[1724940034802,4.15934939,2575.1,2574.7,0.0058317]
[1724940034803,0.38823,2575.1,2574.7,0.0058317]
[1724940034998,0.97055,2575.2,2574.7,0.0058317]
[1724940035198,4.32527067,2575.0,2574.7,0.0058317]
[1724940035396,3.8832,2575.1,2574.7,0.0058317]
[1724940035397,8.20847067,2575.1,2574.7,0.0058317]
[1724940035602,0.38827,2574.9,2574.7,0.0058317]
[1724940035799,0.38828,2574.8,2574.7,0.0058317]
[1724940036096,4.13360209,2574.8,2574.7,0.0058317]
[1724940036288,4.27228,2574.8,2574.7,0.0058317]
[1724940036491,4.71297301,2574.8,2574.7,0.0058317]
[1724940036694,9.92217301,2574.8,2574.7,0.0058317]
[1724940036897,5.59748,2574.8,2574.7,0.0058317]
[1724940037197,8.33441551,2574.8,2574.7,0.0058317]
[1724940037398,3.2078,2574.9,2574.7,0.0058317]
[1724940037596,3.2078,2574.9,2574.7,0.3941217]
[1724940037989,3.2078,2574.9,2574.8,0.38828]
[1724940038189,0.76051,2575.3,2574.9,0.38826]
[1724940038396,3.5626,2575.5,2575.2,0.38821]
[1724940038590,0.38821,2575.3,2575.0,3.2078]
[1724940038797,0.38823,2575.1,2575.0,3.2078]
[1724940038998,0.38828,2574.8,2574.7,0.0058317]
[1724940039300,0.97059,2575.1,2574.7,0.0058317]
[1724940039301,4.28754819,2575.1,2574.7,0.0058317]
[1724940039604,0.38827,2574.9,2574.7,0.0058317]
[1724940040006,4.56678,2574.8,2574.7,0.0058317]
[1724940040196,9.42147327,2574.8,2574.7,0.0058317]
[1724940040505,9.18428,2574.8,2574.7,0.0058317]
[1724940040707,0.97078,2574.6,2573.5,3.2078]
[1724940040896,0.38845,2573.7,2573.5,3.2078]
[1724940041203,3.2078,2574.1,2573.5,3.2078]
[1724940041405,4.72665447,2574.5,2573.5,3.2078]
[1724940041406,0.3844,2574.5,2573.5,3.2078]
[1724940041595,0.38837,2574.2,2573.7,0.0058317]
[1724940041801,4.34225447,2574.2,2573.7,0.0058317]
[1724940042005,0.3941817,2574.3,2573.9,0.38841]
[1724940042204,0.0058317,2574.3,2574.0,0.3884]
[1724940042396,0.0058317,2574.3,2573.9,0.3884]
[1724940042597,0.0058317,2574.3,2573.8,3.2078]
[1724940042598,0.3884,2574.0,2573.8,3.2078]
[1724940042791,0.3884,2574.0,2573.7,0.0058317]
[1724940042792,0.38843,2573.8,2573.7,0.0058317]
[1724940042997,7.54614002,2574.2,2573.7,0.0058317]
[1724940043199,0.38841,2574.0,2573.7,0.0058317]
[1724940043396,7.54614002,2574.2,2573.7,0.0058317]
[1724940043709,0.38843,2573.8,2573.7,0.0058317]
[1724940044404,0.38842,2573.9,2573.7,0.0058317]
[1724940044605,3.2078,2574.1,2573.8,0.38842]
[1724940044808,0.0058317,2574.3,2573.8,3.2078]
[1724940045306,4.34208579,2574.1,2573.7,0.0058317]
[1724940045495,3.2136317,2574.3,2573.8,0.38842]
[1724940045694,0.38838,2574.2,2573.8,0.38842]
[1724940045898,0.38838,2574.1,2573.7,0.3942617]
[1724940046208,3.5962,2574.0,2573.7,0.0058317]
[1724940046404,0.38841,2573.9,2573.7,0.0058317]
[1724940046606,4.56923772,2573.9,2573.7,0.0058317]
[1724940046804,5.24511,2573.8,2573.7,0.0058317]
[1724940047007,4.64963,2573.8,2573.7,0.0058317]
[1724940047211,9.76580687,2573.8,2573.7,0.0058317]
[1724940047509,10.15060687,2573.8,2573.7,0.0058317]
[1724940047900,0.38853,2573.1,2572.6,0.38861]
[1724940048098,0.97112,2573.7,2572.5,7.4735]
[1724940048099,0.38853,2573.2,2572.5,7.4735]
[1724940048317,4.26166097,2573.0,2572.5,7.4735]
[1724940048603,0.267563,2573.1,2572.5,7.4735]
[1724940048812,0.38859,2572.8,2572.5,7.4735]
[1724940048998,4.17908,2573.3,2572.5,7.4735]
[1724940048999,0.0058317,2572.9,2572.5,7.4735]
[1724940049195,0.0058317,2572.9,2572.8,3.2078]
[1724940049402,0.0058317,2572.9,2572.8,50.39638]
[1724940049603,0.0058317,2572.9,2572.8,48.28278]
[1724940049812,0.0058317,2572.9,2572.8,3.8864]
[1724940050501,0.0058317,2572.9,2572.8,4.27498]
[1724940050700,0.0058317,2572.9,2572.8,7.48278]
[1724940050910,0.0058317,2572.9,2572.8,3.8864]
[1724940051097,0.0058317,2572.9,2572.6,40.8]
[1724940051606,0.38862,2572.5,2572.4,0.0058317]
[1724940052012,0.38862,2572.5,2571.6,0.7635]
[1724940052013,9.16468798,2572.5,2571.6,0.7635]
[1724940052208,0.7713317,2572.9,2572.1,3.2078]
[1724940052503,0.0058317,2572.9,2572.2,0.3727]
[1724940052705,4.24468798,2572.8,2572.5,0.38862]
[1724940052899,4.24468798,2572.8,2572.4,3.6022617]
[1724940053101,0.0058317,2572.9,2572.4,3.6022717]
[1724940053299,0.3944117,2572.9,2572.4,3.2136317]
[1724940053500,0.0058317,2572.9,2572.4,3.2136317]
[1724940053705,0.3943917,2572.9,2572.4,3.2136317]
[1724940053908,4.54465494,2572.8,2572.4,3.2136317]
[1724940054208,0.3886,2572.7,2572.4,3.2136317]
[1724940054412,4.15606494,2572.8,2572.4,3.2136317]
[1724940054607,0.0058317,2572.9,2572.5,3.8872]
[1724940054799,0.0058317,2572.9,2572.7,0.38859]
[1724940054998,0.0058317,2572.9,2572.5,3.8872]
[1724940054999,0.0058317,2572.9,2572.6,3.8872]
[1724940055215,0.0058317,2572.9,2572.4,7.8663717]
[1724940055514,0.0058317,2572.9,2572.4,3.5905317]
[1724940055712,0.0058317,2572.9,2572.5,0.38862]
[1724940056104,0.3943917,2572.9,2572.4,3.9791617]
[1724940056312,0.38858,2572.8,2572.4,3.5905317]
[1724940056708,0.3944017,2572.9,2572.5,0.38862]
[1724940056903,0.0058317,2572.9,2572.4,3.5905317]
[1724940057112,0.0058317,2572.9,2572.5,0.38862]
[1724940057715,0.0058317,2572.9,2572.7,0.38859]
[1724940058009,0.0058317,2572.9,2572.4,7.4777317]
[1724940058217,0.0058317,2572.9,2572.8,0.38858]
[1724940058415,0.0058317,2572.9,2572.8,41.18858]
[1724940058617,0.0058317,2572.9,2572.8,45.07498]
[1724940058816,4.92,2574.2,2572.8,55.9778]
[1724940059112,3.2078,2574.3,2573.3,3.2078]
[1724940059303,0.97101,2574.0,2573.4,0.7403]
[1724940059498,4.17881,2574.0,2573.4,0.7403]
[1724940059703,0.38846,2573.7,2573.4,0.7403]
[1724940059904,0.46022535,2573.9,2573.4,0.7403]
[1724940060109,4.1180325,2573.6,2573.3,3.2078]
[1724940060316,4.5065025,2573.6,2573.3,3.2078]
[1724940060503,4.1180325,2573.9,2573.3,3.2078]
[1724940060704,3.2136317,2574.0,2573.6,0.38845]
[1724940061013,0.38841,2573.9,2573.6,3.2078]
[1724940061214,0.0058317,2574.0,2573.3,3.2078]
[1724940061414,4.31872156,2573.9,2573.3,3.2078]
[1724940061609,0.38848,2573.5,2573.3,3.2078]
[1724940061910,9.23872156,2573.9,2573.3,3.2078]
[1724940062104,12.44652156,2573.9,2573.3,3.2078]
[1724940062301,4.31872156,2573.9,2573.3,3.2078]
[1724940062510,0.38847,2573.5,2573.3,3.2078]
[1724940062714,0.38849,2573.4,2573.3,3.2078]
[1724940063006,4.43222834,2573.4,2573.3,3.2078]
[1724940063401,8.31782834,2573.4,2573.3,3.2078]
[1724940064011,9.28905834,2573.4,2573.3,3.2078]
[1724940064414,16.05713834,2573.4,2572.6,0.3925]
[1724940064602,12.17153834,2573.4,2572.6,0.3925]
[1724940064918,7.25153834,2573.4,2572.6,3.6003]
[1724940065209,0.38852,2573.3,2572.6,3.6003]
[1724940065403,0.38851,2573.3,2572.6,3.6003]
[1724940065600,0.38851,2573.3,2572.9,0.38856]
[1724940066010,0.38853,2573.2,2572.7,0.38858]
[1724940066313,0.38853,2573.2,2572.6,3.6003]
[1724940066314,0.38851,2573.3,2572.8,0.38857]
[1724940066811,7.25153834,2573.4,2572.8,0.38857]
[1724940067018,0.38856,2573.0,2572.6,3.6003]
[1724940067212,7.25153834,2573.4,2572.7,0.38859]
[1724940067213,0.38854,2573.1,2572.7,0.38859]
[1724940067514,4.41629086,2573.2,2572.7,0.38858]
[1724940067515,0.38853,2573.2,2572.7,0.38858]
[1724940067818,3.2078,2573.4,2572.9,0.38856]
[1724940067819,3.5963,2573.4,2572.9,0.38856]
[1724940068012,3.5963,2573.4,2572.6,3.6003]
[1724940068316,4.19727964,2573.3,2573.0,0.38853]
[1724940068613,0.38853,2573.1,2572.9,3.2078]
[1724940068816,3.2078,2573.4,2572.9,3.2078]
[1724940068817,4.19727964,2573.5,2572.9,0.38856]
[1724940069113,0.38849,2573.4,2573.0,0.38855]
[1724940069306,0.38851,2573.3,2572.9,0.38855]
[1724940069810,0.38855,2573.0,2572.8,3.2078]
[1724940070010,3.2078,2573.5,2572.8,3.2078]
[1724940070011,0.38856,2572.9,2572.8,3.2078]
[1724940070214,4.0871622,2572.9,2572.6,0.3925]
[1724940070411,0.38858,2572.8,2572.6,0.3925]
[1724940070617,0.38859,2572.7,2572.6,0.3925]
[1724940070923,0.38857,2572.9,2572.6,0.3925]
[1724940071111,4.22704317,2573.0,2572.6,0.3925]
[1724940071310,0.97112,2573.7,2572.6,0.3925]
[1724940071311,3.2078,2573.6,2572.6,0.3925]
[1724940071810,0.38856,2573.0,2572.6,0.7811]
[1724940072017,0.38854,2573.1,2572.7,0.38859]
[1724940072215,4.17909,2573.3,2572.6,0.7811]
[1724940072417,0.38852,2573.2,2572.9,0.38856]
[1724940072616,3.2078,2573.3,2572.8,0.38857]
[1724940072928,0.38853,2573.1,2572.8,0.38857]
[1724940073216,0.38853,2573.2,2572.6,0.3925]
[1724940073413,0.38854,2573.1,2572.6,0.3925]
[1724940073617,0.97131,2573.2,2572.6,0.7811]
[1724940073812,0.97134,2573.1,2572.6,0.3925]
[1724940074021,0.38859,2572.7,2572.5,7.4791]
[1724940074616,0.97134,2573.1,2572.5,7.4791]
[1724940074808,0.97138,2573.0,2572.5,7.4791]
[1724940075008,5.05779579,2572.9,2572.5,3.886]
[1724940075215,0.38862,2572.6,2572.4,0.0058317]
[1724940075413,3.2078,2572.7,2572.4,0.0058317]
[1724940075414,3.2078,2572.7,2572.5,0.38862]
[1724940075618,3.2078,2572.7,2572.4,0.0058317]
[1724940075817,3.59641,2572.7,2572.4,0.0058317]
[1724940076212,3.2078,2572.7,2572.4,0.0058317]
[1724940076613,3.5964,2572.7,2572.4,0.0058317]
[1724940077011,3.2078,2572.7,2572.4,0.0058317]
[1724940077209,5.89114,2573.7,2573.1,0.38853]
[1724940077424,0.38846,2573.7,2573.2,3.2078]
[1724940077719,3.9605,2573.9,2573.3,0.7345]
[1724940077720,0.38849,2573.4,2573.3,0.7345]
[1724940077922,0.38854,2573.1,2572.9,3.2078]
[1724940078224,0.38853,2573.2,2572.9,0.38856]
[1724940078520,0.97127,2573.3,2572.6,3.9423]
[1724940078723,0.38854,2573.1,2572.8,0.38857]
[1724940079419,0.38853,2573.2,2572.9,0.38856]
[1724940079626,0.38854,2573.1,2572.8,0.38857]
[1724940080214,0.38854,2573.1,2572.9,0.38856]
[1724940080419,0.97123,2573.4,2572.9,0.38856]
[1724940080633,9.09896,2573.6,2572.9,3.2078]
[1724940080926,4.27981838,2573.3,2573.0,0.38855]
[1724940081139,0.38851,2573.3,2573.0,0.38855]
[1724940081318,0.38852,2573.2,2572.9,3.59636]
[1724940081732,0.38855,2573.0,2572.9,3.2078]
[1724940081920,0.38854,2573.1,2572.9,3.2078]
[1724940082318,0.38853,2573.2,2572.9,3.59636]
[1724940082527,3.59631,2573.3,2572.9,3.59636]
[1724940082726,3.2078,2573.3,2572.9,3.59636]
[1724940082921,3.59631,2573.3,2573.0,0.38855]
[1724940083116,0.38853,2573.1,2572.9,3.2078]
[1724940083316,0.38854,2573.1,2572.9,3.2078]
[1724940083528,3.2078,2573.3,2572.6,0.7345]
[1724940083529,0.38859,2572.7,2572.6,0.3612]
[1724940083729,0.38862,2572.6,2572.4,0.0058317]
[1724940083920,5.30862,2572.5,2572.4,0.0058317]
[1724940084122,13.04321919,2572.5,2572.4,0.0058317]
[1724940084421,8.48231919,2572.5,2572.4,0.0058317]
[1724940084620,4.23601919,2572.5,2572.4,0.0058317]
[1724940084816,2.82801919,2572.5,2572.4,0.0058317]
[1724940085129,3.21663919,2572.5,2572.4,0.0058317]
[1724940085329,0.0058317,2572.7,2572.4,0.0058317]
[1724940085625,0.0058317,2572.7,2572.6,0.38861]
[1724940086130,0.0058317,2572.7,2572.6,4.27581]
[1724940086721,0.0058317,2572.7,2572.6,5.24734]
[1724940086923,3.2078,2573.6,2572.7,0.97149]
[1724940087227,9.33760202,2573.5,2572.9,0.38856]
[1724940087430,9.33760202,2573.5,2573.0,0.38854]
[1724940087729,9.33760202,2573.5,2572.8,40.8]
[1724940087923,9.33760202,2573.5,2573.0,3.2078]
[1724940087924,0.0058317,2573.4,2573.0,3.2078]
[1724940088121,0.0058317,2573.4,2573.3,0.3885]
[1724940088522,0.0058317,2573.4,2573.3,4.2741]
[1724940088724,0.0058317,2573.4,2573.3,7.4819]
[1724940089733,0.0058317,2573.4,2573.3,13.4819]
[1724940090535,3.2078,2574.1,2573.3,14.10076437]
[1724940090829,3.59619,2574.1,2573.8,0.38842]
[1724940091038,3.59619,2574.1,2573.6,3.2078]
[1724940091039,0.38841,2573.9,2573.6,3.59625]
[1724940091234,0.7509,2574.6,2573.6,3.59625]
[1724940091235,4.34140237,2574.0,2573.9,0.38841]
[1724940091533,0.38836,2574.3,2574.0,0.38839]
[1724940091721,0.38836,2574.3,2573.9,3.59621]
[1724940091927,0.38834,2574.4,2574.0,0.3884]
[1724940092131,0.38829,2574.8,2573.9,3.2078]
[1724940092330,0.38829,2574.8,2574.4,0.38833]
[1724940092331,4.04295125,2574.5,2574.4,0.38833]
[1724940092531,4.04295125,2574.7,2574.2,3.2078]
[1724940092727,4.04295125,2574.7,2574.0,0.3884]
[1724940092929,5.01367125,2574.8,2574.0,0.3884]
[1724940093125,0.97072,2574.8,2574.0,0.3884]
[1724940093329,0.38834,2574.4,2574.1,0.38838]
[1724940093530,0.38836,2574.3,2573.9,3.5962]
[1724940093729,0.38836,2574.3,2573.9,3.59621]
[1724940093936,0.38837,2574.2,2573.9,3.2078]
[1724940094232,0.3884,2574.0,2573.9,3.2078]
[1724940094535,4.42977116,2574.0,2573.9,3.2078]
[1724940094743,8.31457116,2574.0,2573.9,3.2078]
[1724940095031,9.28557116,2574.0,2573.9,3.2078]
[1724940095224,1.35951,2573.8,2573.7,0.0058317]
[1724940095624,14.8056,2573.8,2573.0,8.8892]
[1724940095941,0.97115,2573.6,2573.0,8.8892]
[1724940096234,0.38853,2573.1,2573.0,8.8892]
[1724940096737,0.38853,2573.2,2573.0,3.2078]
[1724940097142,0.38853,2573.1,2573.0,3.2078]
[1724940097644,1.35987,2573.1,2573.0,3.2078]
[1724940098233,0.38853,2573.1,2573.0,3.2078]
[1724940098538,0.0058317,2573.3,2573.0,7.0942]
[1724940098725,0.0058317,2573.3,2573.1,0.38853]
[1724940098932,0.0058317,2573.3,2573.2,0.3768]
[1724940099135,0.3943317,2573.3,2573.2,0.3768]
[1724940099325,0.0058317,2573.3,2573.2,4.65172]
[1724940099933,0.0058317,2573.3,2573.2,10.65172]
[1724940100635,3.2078,2573.8,2573.2,4.2632]
[1724940100939,0.38853,2573.1,2573.0,3.2078]
[1724940101133,0.38856,2572.9,2572.8,0.0058317]
[1724940101341,0.38856,2573.0,2572.8,0.0058317]
[1724940101734,0.38856,2572.9,2572.8,0.0058317]
[1724940103727,0.38856,2573.0,2572.8,0.0058317]
[1724940103936,0.38856,2572.9,2572.8,0.0058317]
[1724940104341,0.38856,2573.0,2572.8,0.0058317]
[1724940104542,0.38856,2572.9,2572.8,0.0058317]
[1724940105044,0.97164,2572.4,2571.7,3.2078]
[1724940105351,4.92,2572.7,2571.9,0.38871]
[1724940105534,4.92,2572.7,2572.0,3.2078]
[1724940105734,0.38863,2572.5,2572.1,0.3607]
[1724940106131,0.38864,2572.4,2572.1,0.3607]
[1724940106336,0.38869,2572.1,2572.0,0.0058317]
[1724940108040,8.53558847,2572.1,2572.0,0.0058317]
[1724940108241,4.25889847,2572.1,2572.0,4.2825317]
[1724940108448,3.59645,2572.4,2572.0,4.2825317]
[1724940108742,0.0058317,2572.6,2572.0,3.2136317]
[1724940108944,0.38869,2572.1,2572.0,3.2136317]
[1724940109331,9.2652458,2572.1,2572.0,0.0058317]
[1724940109536,12.8475458,2572.1,2572.0,0.0058317]
[1724940109733,0.97176,2572.0,2571.3,0.3675]
[1724940109944,0.38879,2571.4,2571.3,0.3675]
[1724940110648,3.2078,2571.9,2571.1,0.38883]
[1724940110837,3.2078,2571.9,2571.3,3.2078]
[1724940111036,4.89292621,2571.6,2571.3,3.2078]
[1724940111246,4.50416621,2571.8,2571.4,0.38878]
[1724940111545,0.0058317,2572.6,2571.7,3.2078]
[1724940111546,3.2078,2572.3,2571.7,3.2078]
[1724940111737,0.38868,2572.2,2571.8,0.38872]
[1724940111937,4.14872397,2572.1,2571.8,0.75092]
[1724940112136,4.14872397,2572.1,2571.8,0.3622]
[1724940112338,0.38871,2572.0,2571.8,0.3622]
[1724940112747,3.2078,2572.3,2571.8,0.3622]
[1724940113044,0.3887,2572.1,2571.8,0.3622]
[1724940113242,4.12988876,2572.2,2571.3,0.3893]
[1724940113243,4.92,2571.9,2571.3,0.3893]
[1724940113845,4.51861876,2571.8,2571.5,0.38877]
[1724940114048,4.12988876,2571.8,2571.5,0.38877]
[1724940114242,0.38874,2571.8,2571.5,0.38877]
[1724940114445,0.38874,2571.8,2571.4,3.2078]
[1724940114649,4.37333001,2571.7,2571.4,3.59658]
[1724940114846,0.3919,2572.0,2571.4,3.2078]
[1724940115050,3.2078,2571.9,2571.4,3.2078]
[1724940115242,0.38874,2571.8,2571.5,0.38877]
[1724940115437,0.38874,2571.8,2571.4,3.2078]
[1724940115650,4.67006615,2571.9,2571.4,3.2078]
[1724940115851,0.38874,2571.8,2571.4,3.59658]
[1724940116040,0.97184,2571.8,2571.4,3.2078]
[1724940116345,4.29044059,2571.7,2571.4,3.59658]
[1724940116650,0.38874,2571.8,2571.5,40.8]
[1724940116835,0.38876,2571.6,2571.5,40.8]
[1724940117243,0.38878,2571.5,2571.4,3.2078]
[1724940117447,4.11048904,2571.6,2571.4,3.2078]
[1724940117652,0.38875,2571.7,2571.4,44.39658]
[1724940118148,0.38874,2571.8,2571.5,0.38877]
[1724940118651,0.38875,2571.7,2571.4,3.59658]
[1724940118842,0.38877,2571.6,2571.4,3.2078]
[1724940119042,4.86637401,2571.7,2571.4,3.59659]
[1724940119243,0.38876,2571.7,2571.4,3.59659]
[1724940119445,0.38876,2571.6,2571.4,3.59659]
[1724940119639,0.38878,2571.5,2571.4,3.2078]
[1724940120356,4.92,2572.2,2571.4,3.2078]
[1724940120655,4.08453074,2572.2,2571.9,0.38871]
[1724940120950,0.9773717,2572.6,2572.3,0.38865]
[1724940120951,0.0058317,2572.6,2572.3,0.38865]
[1724940121144,0.0058317,2572.6,2572.3,3.2078]
[1724940121346,0.0058317,2572.6,2572.5,0.38862]
[1724940121846,0.0058317,2572.6,2572.5,4.27582]
[1724940122651,0.0058317,2572.6,2572.5,3.8872]
[1724940122956,0.0058317,2572.6,2572.5,4.27582]
[1724940123746,4.92,2573.0,2572.5,9.8872]
[1724940123948,0.38861,2572.7,2572.5,0.38862]
[1724940124253,0.38864,2572.4,2572.3,3.2078]
[1724940124455,1.36025,2572.4,2572.3,3.2078]
[1724940124649,0.38864,2572.4,2572.3,3.2078]
[1724940124949,0.9773817,2572.6,2572.4,0.38864]
[1724940124950,0.3944417,2572.6,2572.4,0.38864]
[1724940125154,0.0058317,2572.6,2572.5,0.38862]
[1724940125744,0.0058317,2572.6,2572.5,4.27582]
[1724940126146,0.0058317,2572.6,2572.5,10.27582]
[1724940126449,0.38849,2573.4,2572.6,0.97153]
[1724940126651,0.38853,2573.1,2573.0,3.2078]
[1724940126952,0.38854,2573.1,2572.9,0.38856]
[1724940127147,0.38856,2572.9,2572.8,40.8]
[1724940127344,0.38862,2572.6,2572.4,0.3714]
[1724940127550,0.38856,2572.9,2572.7,0.38858]
[1724940127747,10.30549268,2573.3,2572.4,0.7578]
[1724940127748,4.92,2573.3,2572.4,0.7578]
[1724940127948,0.38858,2572.8,2572.7,0.38859]
[1724940128149,4.34282045,2573.2,2572.4,41.5578]
[1724940128349,0.38855,2573.1,2572.8,0.38857]
[1724940128659,0.38859,2572.7,2572.4,41.94643]
[1724940128961,4.17917,2573.1,2572.6,0.3886]
[1724940129153,4.17917,2573.1,2572.4,41.5578]
[1724940129154,0.38855,2573.0,2572.4,41.5578]
[1724940129352,3.2078,2573.1,2572.4,41.5578]
[1724940129655,0.38859,2572.8,2572.4,41.5578]
[1724940129855,4.17915,2573.1,2572.6,0.3886]
[1724940130057,0.38859,2572.8,2572.6,0.3886]
[1724940130264,4.17915,2573.1,2572.6,0.3886]
[1724940130560,0.3885,2573.4,2573.1,0.38852]
[1724940130762,0.97107,2573.9,2573.2,3.969]
[1724940130763,4.92,2573.9,2573.2,3.969]
[1724940130951,0.38837,2574.2,2573.6,3.2078]
[1724940131151,0.38841,2573.9,2573.6,3.2136317]
[1724940131352,1.35956,2573.7,2573.6,0.0058317]
[1724940131549,6.27956,2573.7,2573.6,0.0058317]
[1724940131752,10.16516,2573.7,2573.6,0.0058317]
[1724940131954,0.38843,2573.8,2573.6,0.0058317]
[1724940132350,8.1278,2574.0,2573.6,0.0058317]
[1724940132551,5.30837,2574.2,2573.7,0.38844]
[1724940132756,5.30837,2574.2,2573.8,0.7463]
[1724940132961,0.38839,2574.1,2573.8,0.7463]
[1724940133460,0.3884,2574.0,2573.8,0.7463]
[1724940133664,0.38838,2574.2,2573.8,0.7463]
[1724940133965,0.38836,2574.3,2573.8,0.7463]
[1724940134159,4.92,2574.3,2573.8,0.7463]
[1724940134354,0.38841,2573.9,2573.6,0.0058317]
[1724940134551,5.30844,2573.7,2573.6,0.0058317]
[1724940135964,0.38844,2573.7,2573.6,0.0058317]
[1724940136156,0.38844,2573.8,2573.6,0.0058317]
[1724940137154,0.3861,2574.1,2573.6,0.0058317]
[1724940137358,0.77449,2574.1,2573.6,0.0058317]
[1724940137663,4.46611056,2574.0,2573.6,0.0058317]
[1724940137852,4.07771056,2574.0,2573.6,0.0058317]
[1724940138057,4.07771056,2574.0,2573.6,3.6020917]
[1724940138261,4.07771056,2574.0,2573.7,0.38844]
[1724940138454,5.30838,2574.2,2573.6,7.4876817]
[1724940138761,0.38839,2574.1,2573.6,3.6020817]
[1724940139271,0.38842,2573.9,2573.6,3.2136317]
[1724940139458,4.48616442,2574.0,2573.8,0.38843]
[1724940139654,0.3806,2574.5,2574.0,0.38839]
[1724940139655,5.3006,2574.5,2574.0,0.38839]
[1724940139854,0.38828,2574.8,2574.3,0.38835]
[1724940140056,0.38829,2574.7,2574.2,3.59616]
[1724940140263,0.38829,2574.7,2574.3,0.38835]
[1724940140452,4.07010708,2574.8,2574.5,0.38831]
[1724940140665,0.38825,2575.0,2574.5,3.59611]
[1724940140855,4.92,2575.1,2574.4,0.38833]
[1724940140856,0.38828,2574.9,2574.4,0.38833]
[1724940141053,4.92,2574.8,2574.3,0.7235]
[1724940141267,0.38835,2574.4,2573.9,3.5962]
[1724940141463,0.38835,2574.4,2573.9,3.59621]
[1724940141662,8.1278,2574.6,2573.9,3.2078]
[1724940141968,4.45837681,2574.5,2573.9,3.2078]
[1724940142154,0.38844,2573.7,2573.6,0.0058317]
[1724940142359,4.92,2574.0,2573.6,0.0058317]
[1724940142560,0.38841,2573.9,2573.6,0.0058317]
[1724940142957,0.38843,2573.8,2573.6,0.0058317]
[1724940143161,0.38841,2573.9,2573.6,0.0058317]
[1724940143361,4.92,2574.0,2573.6,0.0058317]
[1724940143665,4.92,2573.7,2573.6,0.0058317]
[1724940144276,0.38842,2573.9,2573.6,0.0058317]
[1724940144466,0.38843,2573.8,2573.6,0.0058317]
[1724940144662,5.30844,2573.7,2573.6,0.0058317]
[1724940144868,5.30844,2573.7,2572.5,3.2078]
[1724940144869,12.7348,2573.7,2572.5,3.2078]
[1724940145165,0.38857,2572.9,2572.5,3.5725]
[1724940145363,4.92,2573.1,2572.5,0.3647]
[1724940145564,0.38864,2572.4,2572.2,3.2078]
[1724940145761,0.38865,2572.4,2572.2,3.2078]
[1724940145961,0.38865,2572.4,2571.8,0.3647]
[1724940145962,4.92,2572.5,2572.0,0.0058317]
[1724940146165,0.0058317,2572.6,2572.0,0.0058317]
[1724940146166,0.3944417,2572.6,2572.0,0.0058317]
[1724940146670,9.00073497,2572.5,2572.0,0.0058317]
[1724940146867,4.92,2572.5,2572.0,0.0058317]
[1724940147172,0.38865,2572.4,2572.0,0.0058317]
[1724940147370,4.92,2572.5,2572.0,0.0058317]
[1724940147576,0.0058317,2572.6,2572.0,0.0058317]
[1724940147577,5.30868,2572.2,2572.0,0.0058317]
[1724940147869,4.92,2572.2,2572.0,0.0058317]
[1724940148070,0.38866,2572.3,2572.0,0.0058317]
[1724940148376,0.38869,2572.1,2572.0,0.0058317]
[1724940148569,0.38875,2571.7,2571.2,0.3543]
[1724940148765,4.92,2571.6,2570.8,3.2078]
[1724940149078,9.10832831,2571.6,2570.8,3.95098]
[1724940149268,0.38878,2571.5,2570.8,3.95098]
[1724940149575,4.92,2571.6,2570.8,3.5621]
[1724940149870,0.38885,2571.0,2570.9,0.0058317]
[1724940150075,0.38885,2571.0,2569.5,4.92]
[1724940150076,3.2078,2571.0,2569.4,3.2078]
[1724940150269,3.2078,2571.0,2569.1,3.02209311]
[1724940150270,8.1278,2569.7,2568.8,0.7209]
[1724940150471,5.30911,2569.3,2568.5,3.98662]
[1724940150772,5.30911,2569.3,2568.8,3.2078]
[1724940150773,4.92,2569.3,2568.8,3.2078]
[1724940150972,5.30911,2569.3,2568.8,3.2078]
[1724940151167,5.3149417,2569.3,2568.8,3.2136317]
[1724940151369,4.9258317,2569.3,2568.8,0.0058317]
[1724940151773,0.0058317,2569.3,2569.1,3.2078]
[1724940152068,0.0058317,2569.3,2568.8,0.0058317]
[1724940152069,0.0058317,2569.3,2568.8,3.2136317]
[1724940152374,0.0058317,2569.3,2569.1,3.59693]
[1724940152671,0.0058317,2569.3,2569.2,0.38912]
[1724940152972,0.00203803,2569.3,2569.2,4.28112]
[1724940153275,3.2078,2569.9,2569.4,0.38908]
[1724940153580,3.2078,2569.9,2569.5,3.2078]
[1724940153775,0.38897,2570.3,2569.5,3.2078]
[1724940153973,5.14,2570.5,2569.5,3.2078]
[1724940153974,4.20081256,2569.8,2569.5,3.2078]
[1724940154471,0.0058317,2569.9,2569.5,7.099]
[1724940154681,0.0058317,2569.9,2569.5,3.2078]
[1724940155370,0.0058317,2569.9,2569.8,3.2078]
[1724940155566,0.0058317,2569.9,2569.8,3.59683]
[1724940155771,0.0058317,2569.9,2569.8,3.2078]
[1724940156074,0.0058317,2569.9,2569.8,3.8912]
[1724940156270,0.0058317,2569.9,2569.8,13.48803]
[1724940156574,0.0058317,2569.9,2569.8,3.2078]
[1724940156766,0.0058317,2569.9,2569.5,3.2078]
[1724940156966,0.0058317,2569.9,2568.9,0.7549]
[1724940156967,4.20237816,2569.9,2569.0,3.59694]
[1724940157171,4.20237816,2569.9,2569.4,0.38909]